bitfinex-derivatives/quotes_BTCF0:USTF0_20240815
["timestamp","ask_amount","ask_price","bid_price","bid_amount"]
[1723722432447,0.10362133,58832.0,58831.0,0.617731]
[1723722432643,0.10362133,58832.0,58831.0,0.532754]
[1723722432948,0.10362133,58832.0,58831.0,1.127651]
[1723722433141,0.10362133,58832.0,58831.0,1.612628]
[1723722433541,0.10362133,58832.0,58831.0,1.62075436]
[1723722433747,0.10362133,58832.0,58831.0,1.53577736]
[1723722433941,0.10362133,58832.0,58831.0,1.62075436]
[1723722434443,0.10362133,58832.0,58831.0,1.53577736]
[1723722435149,0.10362133,58832.0,58831.0,1.62075436]
[1723722435338,0.10362133,58832.0,58831.0,1.53577736]
[1723722436252,0.10362133,58832.0,58831.0,0.62585736]
[1723722436851,0.10362133,58832.0,58831.0,0.53988036]
[1723722437246,0.18859733,58832.0,58831.0,0.53988036]
[1723722437648,0.18859733,58832.0,58831.0,0.45390336]
[1723722438455,0.27357233,58832.0,58831.0,0.445777]
[1723722438652,0.10362133,58832.0,58831.0,0.530754]
[1723722438842,0.18859733,58832.0,58831.0,0.530754]
[1723722439047,0.18859733,58832.0,58831.0,0.445777]
[1723722439252,0.18859733,58832.0,58831.0,0.530754]
[1723722439555,0.10362133,58832.0,58831.0,0.530754]
[1723722440147,0.10362133,58832.0,58831.0,0.615731]
[1723722440846,0.10362133,58832.0,58831.0,0.530754]
[1723722441157,0.10362133,58832.0,58831.0,0.6659272]
[1723722441853,0.10362133,58832.0,58831.0,0.615731]
[1723722442059,0.10362133,58832.0,58831.0,1.125651]
[1723722442757,0.10362133,58832.0,58831.0,1.1758472]
[1723722443254,0.10362133,58832.0,58831.0,1.040674]
[1723722443460,0.10362133,58832.0,58831.0,1.125651]
[1723722443643,0.10362133,58832.0,58831.0,0.615731]
[1723722443847,0.00025497,58837.0,58831.0,0.615731]
[1723722443848,9.7e-07,58837.0,58836.0,0.42485]
[1723722444047,0.11515151,58852.0,58841.0,0.339852]
[1723722444252,0.02609926,58842.0,58841.0,1.100652]
[1723722444454,4e-07,58842.0,58841.0,1.610492]
[1723722444657,0.11515151,58852.0,58851.0,0.254844]
[1723722444844,0.11515151,58852.0,58851.0,0.891496]
[1723722445659,0.11515151,58852.0,58851.0,0.976444]
[1723722446153,0.11515151,58852.0,58851.0,0.977444]
[1723722447854,0.11515151,58852.0,58851.0,0.978444]
[1723722448745,0.11515151,58852.0,58851.0,0.893496]
[1723722448953,0.20009851,58852.0,58851.0,0.808548]
[1723722449151,0.11515151,58852.0,58851.0,1.063392]
[1723722449666,0.20009851,58852.0,58851.0,0.808548]
[1723722449859,0.20009851,58852.0,58851.0,0.893496]
[1723722449860,0.11515151,58852.0,58851.0,0.893496]
[1723722450448,0.11515151,58852.0,58851.0,0.892496]
[1723722450660,0.11515151,58852.0,58851.0,0.893496]
[1723722450854,0.11515151,58852.0,58851.0,0.9435034]
[1723722451159,0.11515151,58852.0,58851.0,0.808548]
[1723722451365,0.20009851,58852.0,58851.0,0.893496]
[1723722452366,0.11515151,58852.0,58851.0,0.893496]
[1723722452567,0.11515151,58852.0,58851.0,0.808548]
[1723722452773,0.28504551,58852.0,58851.0,0.7236]
[1723722453151,0.20009851,58852.0,58851.0,0.7236]
[1723722454172,0.20009851,58852.0,58851.0,0.3628]
[1723722454465,0.20009851,58852.0,58851.0,0.002]
[1723722454466,0.22009851,58852.0,58851.0,0.002]
[1723722455462,0.084954,58847.0,58846.0,0.36105497]
[1723722455661,0.084954,58847.0,58837.0,0.00132]
[1723722455662,0.53934349,58847.0,58837.0,0.00132]
[1723722455864,0.53934349,58847.0,58828.0,0.445781]
[1723722455865,0.084973,58834.0,58833.0,0.0500074]
[1723722456170,0.094973,58834.0,58831.0,0.0500074]
[1723722456468,0.094973,58834.0,58827.0,0.0001505]
[1723722456469,0.084981,58828.0,58827.0,0.0001505]
[1723722456771,1.050722,58828.0,58827.0,0.0001505]
[1723722456967,1.050722,58828.0,58822.0,0.00132]
[1723722456968,0.084989,58823.0,58822.0,0.00025497]
[1723722457270,0.530778,58823.0,58822.0,0.00025497]
[1723722457563,1.080778,58823.0,58822.0,0.00025497]
[1723722457868,1.080778,58823.0,58822.0,1e-08]
[1723722458058,1.08095372,58823.0,58822.0,1e-08]
[1723722458963,1.04743195,58823.0,58822.0,1e-08]
[1723722459265,0.085002,58814.0,58809.0,0.085008]
[1723722459461,0.0822,58813.0,58809.0,0.1350154]
[1723722459762,0.167204,58813.0,58809.0,0.1350154]
[1723722459966,0.167204,58813.0,58809.0,0.085008]
[1723722460171,0.08516673,58812.0,58806.0,0.0500074]
[1723722460464,0.00016273,58812.0,58806.0,0.0500074]
[1723722460765,0.00016273,58812.0,58810.0,0.085007]
[1723722460968,0.00016273,58812.0,58811.0,0.085006]
[1723722461568,0.00116273,58812.0,58811.0,0.085006]
[1723722461967,0.00116273,58812.0,58808.0,0.085009]
[1723722462170,0.00116273,58812.0,58811.0,0.003]
[1723722462171,0.00216273,58812.0,58811.0,0.003]
[1723722462472,0.00216273,58812.0,58811.0,0.004]
[1723722463171,0.00216273,58812.0,58811.0,0.089006]
[1723722463568,0.00025497,58817.0,58811.0,0.089006]
[1723722463772,0.00025497,58817.0,58816.0,0.084999]
[1723722464677,0.00025497,58817.0,58816.0,0.169998]
[1723722464972,0.00125497,58817.0,58816.0,0.169998]
[1723722465170,0.0871,58825.0,58824.0,0.169974]
[1723722465375,0.084976,58832.0,58825.0,0.084985]
[1723722465563,0.445773,58834.0,58824.0,0.3608]
[1723722466069,0.084976,58832.0,58824.0,0.3608]
[1723722466272,0.3608,58834.0,58833.0,0.084974]
[1723722466466,0.36105497,58834.0,58833.0,0.084974]
[1723722466774,0.36105497,58834.0,58826.0,0.084984]
[1723722466775,0.084975,58833.0,58826.0,0.084984]
[1723722466974,0.084975,58833.0,58832.0,0.084975]
[1723722467470,0.36105497,58834.0,58833.0,0.084974]
[1723722467975,0.084974,58833.0,58826.0,0.084984]
[1723722468170,0.36205497,58834.0,58826.0,0.084984]
[1723722468478,0.36205497,58834.0,58833.0,0.084974]
[1723722468664,0.36105497,58834.0,58833.0,0.084974]
[1723722468865,0.37105497,58834.0,58833.0,0.086974]
[1723722469064,0.45602697,58834.0,58833.0,0.086974]
[1723722469476,0.45702697,58834.0,58833.0,0.086974]
[1723722469977,0.45802697,58834.0,58833.0,0.086974]
[1723722470166,0.45802697,58834.0,58833.0,0.002]
[1723722470667,0.45902697,58834.0,58831.0,0.084976]
[1723722471172,0.45902697,58834.0,58827.0,0.084983]
[1723722471468,0.37405497,58834.0,58833.0,0.084974]
[1723722472073,0.36505497,58834.0,58833.0,0.084974]
[1723722472666,0.36305497,58834.0,58833.0,0.084974]
[1723722472870,0.36405497,58834.0,58833.0,0.169948]
[1723722473071,0.00325497,58834.0,58833.0,0.615722]
[1723722473265,0.00225497,58834.0,58833.0,0.909622]
[1723722473464,0.084958,58845.0,58833.0,1.56662]
[1723722473771,0.084958,58845.0,58838.0,0.445765]
[1723722474363,0.084958,58845.0,58844.0,0.084958]
[1723722474569,0.085958,58845.0,58844.0,0.084958]
[1723722474772,0.001,58845.0,58844.0,0.084958]
[1723722475479,0.00025497,58847.0,58839.0,0.174365]
[1723722475480,0.084956,58846.0,58839.0,0.174365]
[1723722475676,0.084956,58846.0,58842.0,0.084961]
[1723722475677,0.01,58845.0,58842.0,0.084961]
[1723722475974,0.084958,58844.0,58838.0,0.3608]
[1723722476175,0.084963,58841.0,58833.0,0.084973]
[1723722476477,0.084964,58840.0,58838.0,0.084966]
[1723722476778,0.084968,58837.0,58834.0,0.084972]
[1723722476979,0.114968,58837.0,58834.0,0.084972]
[1723722477279,0.540736,58837.0,58828.0,0.3608]
[1723722477473,0.540736,58837.0,58831.0,0.084976]
[1723722478073,0.540736,58837.0,58836.0,0.00425497]
[1723722479176,0.540736,58837.0,58836.0,0.00825497]
[1723722479572,0.530736,58837.0,58836.0,0.00825497]
[1723722479972,0.560736,58837.0,58836.0,0.00825497]
[1723722480866,0.565736,58837.0,58836.0,0.00425497]
[1723722481773,0.565736,58837.0,58836.0,0.00025497]
[1723722481969,0.485768,58837.0,58836.0,0.00025497]
[1723722482179,0.455768,58837.0,58836.0,0.08522497]
[1723722482381,0.455768,58837.0,58836.0,0.00025497]
[1723722483269,0.560736,58837.0,58836.0,0.00025497]
[1723722486680,0.3908,58837.0,58836.0,0.00025497]
[1723722486889,0.455768,58837.0,58836.0,0.00025497]
[1723722487078,1.55068,58837.0,58825.0,0.0500074]
[1723722487388,0.084991,58821.0,58820.0,0.0500074]
[1723722487571,0.114991,58821.0,58817.0,0.05011237]
[1723722487771,0.084997,58817.0,58815.0,0.05011237]
[1723722487981,0.01,58817.0,58815.0,0.13511237]
[1723722488375,0.01,58817.0,58815.0,0.085]
[1723722489180,0.001,58821.0,58815.0,0.05011237]
[1723722489479,0.36105497,58822.0,58821.0,0.084991]
[1723722491076,0.38105497,58822.0,58815.0,0.004]
[1723722491277,0.46704497,58822.0,58821.0,0.012]
[1723722492380,0.36305497,58822.0,58821.0,0.096991]
[1723722492780,0.36305497,58822.0,58820.0,0.05011237]
[1723722492781,0.36205497,58822.0,58820.0,0.05011237]
[1723722493177,0.44804497,58822.0,58821.0,0.004]
[1723722493378,0.45804497,58822.0,58821.0,0.004]
[1723722493584,0.45704497,58822.0,58821.0,0.004]
[1723722493778,0.45704497,58822.0,58821.0,0.016]
[1723722493779,0.45804497,58822.0,58821.0,0.016]
[1723722494169,0.44804497,58822.0,58821.0,0.016]
[1723722494674,0.36305497,58822.0,58821.0,0.016]
[1723722494978,0.36305497,58822.0,58821.0,0.100991]
[1723722495283,0.36305497,58822.0,58821.0,0.096991]
[1723722495670,0.36305497,58822.0,58821.0,0.012]
[1723722495980,0.36305497,58822.0,58821.0,0.100991]
[1723722496193,0.00225497,58822.0,58821.0,0.270973]
[1723722496483,0.00225497,58822.0,58821.0,0.100991]
[1723722497072,0.3608,58835.0,58821.0,0.8868]
[1723722497272,0.084979,58830.0,58828.0,0.05012694]
[1723722497476,0.3608,58829.0,58824.0,0.05012694]
[1723722497785,0.084982,58828.0,58826.0,0.084984]
[1723722498185,0.3608,58829.0,58824.0,0.05012694]
[1723722498488,0.3608,58829.0,58828.0,0.084981]
[1723722498677,0.084978,58831.0,58829.0,0.084979]
[1723722498880,0.084975,58832.0,58828.0,0.004]
[1723722499188,0.084977,58831.0,58829.0,0.084979]
[1723722499384,0.084977,58831.0,58826.0,0.05012694]
[1723722499385,0.01,58831.0,58830.0,0.084978]
[1723722499690,0.094978,58831.0,58828.0,0.084981]
[1723722499892,0.084979,58830.0,58829.0,0.003]
[1723722500090,0.094979,58830.0,58829.0,0.003]
[1723722501884,0.084979,58830.0,58828.0,0.084981]
[1723722502191,0.084976,58832.0,58825.0,0.13511194]
[1723722502391,0.08522997,58833.0,58831.0,0.084976]
[1723722502587,0.12522997,58833.0,58831.0,0.084976]
[1723722503087,0.04025497,58833.0,58832.0,0.084975]
[1723722503285,0.00025497,58833.0,58832.0,0.084975]
[1723722505787,0.084975,58832.0,58831.0,0.001]
[1723722505983,0.094975,58832.0,58830.0,0.084978]
[1723722506488,0.094975,58832.0,58831.0,0.084977]
[1723722506684,0.084977,58831.0,58829.0,0.13510594]
[1723722506990,0.445778,58830.0,58828.0,0.05012694]
[1723722507186,0.455778,58830.0,58828.0,0.05012694]
[1723722507492,0.445778,58830.0,58828.0,0.05012694]
[1723722507682,0.445778,58830.0,58827.0,0.05012694]
[1723722507879,0.455778,58830.0,58828.0,0.05012694]
[1723722508184,0.3708,58830.0,58829.0,0.08498]
[1723722508693,0.3708,58830.0,58829.0,0.05012694]
[1723722508987,0.3708,58830.0,58829.0,0.13510694]
[1723722509488,0.3708,58830.0,58829.0,0.08798]
[1723722509787,0.3608,58830.0,58829.0,0.08798]
[1723722509989,0.3608,58830.0,58829.0,0.09098]
[1723722510191,0.46232893,58830.0,58829.0,0.08798]
[1723722510491,0.37735093,58830.0,58829.0,0.09098]
[1723722511085,0.45232893,58830.0,58829.0,0.006]
[1723722511491,0.46232893,58830.0,58829.0,0.006]
[1723722511895,0.37735093,58830.0,58829.0,0.09098]
[1723722512093,0.46232893,58830.0,58829.0,0.006]
[1723722515898,0.54730693,58830.0,58829.0,0.006]
[1723722516194,0.81038493,58830.0,58829.0,0.006]
[1723722516400,0.87819681,58830.0,58829.0,0.006]
[1723722516594,0.81038493,58830.0,58829.0,0.006]
[1723722517292,0.169974,58824.0,58823.0,0.05012694]
[1723722517611,0.084988,58823.0,58822.0,0.05027256]
[1723722517802,0.25497,58822.0,58821.0,0.00025497]
[1723722517989,0.68577,58822.0,58821.0,0.00025497]
[1723722518300,2.04967,58822.0,58821.0,1e-08]
[1723722518800,1.96468,58822.0,58821.0,1e-08]
[1723722519295,2.04967,58822.0,58821.0,1e-08]
[1723722519695,0.74365574,58822.0,58821.0,1e-08]
[1723722519891,0.3608,58822.0,58821.0,0.08499101]
[1723722520202,0.41169427,58822.0,58821.0,0.08499101]
[1723722520498,0.3608,58822.0,58821.0,0.08499101]
[1723722521090,0.3618,58822.0,58821.0,0.08499101]
[1723722521500,0.3618,58822.0,58821.0,0.16998201]
[1723722521698,0.3628,58822.0,58821.0,0.18198201]
[1723722521990,0.3628,58822.0,58821.0,0.09699101]
[1723722522201,0.3628,58822.0,58821.0,0.18198201]
[1723722522398,0.3628,58822.0,58821.0,0.24881794]
[1723722524902,0.002,58822.0,58821.0,0.18198201]
[1723722526397,0.002,58822.0,58821.0,0.26697301]
[1723722526604,0.002,58822.0,58821.0,0.46786663]
[1723722526801,0.002,58822.0,58821.0,0.38411019]
[1723722527704,0.002,58822.0,58821.0,0.46789745]
[1723722527899,0.002,58822.0,58821.0,0.46765592]
[1723722528406,0.002,58822.0,58821.0,0.38386866]
[1723722528602,0.002,58822.0,58821.0,0.46766369]
[1723722528896,0.002,58822.0,58821.0,0.35076804]
[1723722529105,0.002,58822.0,58821.0,0.38383631]
[1723722529493,0.002,58822.0,58821.0,0.46762991]
[1723722529798,0.002,58822.0,58821.0,0.46763003]
[1723722530011,0.002,58822.0,58821.0,0.38383631]
[1723722530195,0.002,58822.0,58821.0,0.4676326]
[1723722530396,0.002,58822.0,58821.0,0.26697301]
[1723722530894,0.002,58822.0,58821.0,0.09699101]
[1723722531091,0.002,58822.0,58821.0,0.18198201]
[1723722531396,0.002,58822.0,58821.0,0.38390608]
[1723722531692,0.002,58822.0,58821.0,0.29891508]
[1723722532497,0.002,58822.0,58821.0,0.26578891]
[1723722532798,0.002,58822.0,58821.0,0.35077991]
[1723722532994,0.002,58822.0,58821.0,0.38379802]
[1723722533192,0.002,58822.0,58821.0,0.29880702]
[1723722534107,0.002,58822.0,58821.0,0.38263601]
[1723722534400,0.08699,58822.0,58821.0,0.09699101]
[1723722535207,0.002,58822.0,58821.0,0.09699101]
[1723722535603,0.08699,58822.0,58821.0,0.09699101]
[1723722535807,0.002,58822.0,58821.0,0.09699101]
[1723722536902,0.08699,58822.0,58821.0,0.09699101]
[1723722537203,0.09699,58822.0,58821.0,0.09699101]
[1723722539506,0.08699,58822.0,58821.0,0.09699101]
[1723722540311,1.06278,58822.0,58821.0,0.01200001]
[1723722540517,1.59866427,58822.0,58821.0,0.01200001]
[1723722540810,1.54777,58822.0,58821.0,0.01200001]
[1723722541401,1.14777,58822.0,58821.0,0.01200001]
[1723722545316,1.19865342,58822.0,58821.0,0.01200001]
[1723722545816,1.14777,58822.0,58821.0,0.01200001]
[1723722546215,1.14777,58822.0,58821.0,0.00193615]
[1723722546717,1.71777,58822.0,58821.0,0.00193615]
[1723722546915,0.084998,58816.0,58815.0,0.05032189]
[1723722547215,0.170008,58812.0,58811.0,0.05032189]
[1723722547421,0.170012,58811.0,58810.0,0.00025497]
[1723722547627,0.269812,58811.0,58810.0,0.00025497]
[1723722548917,0.354818,58811.0,58810.0,0.00025497]
[1723722549319,0.40566653,58811.0,58810.0,0.00025497]
[1723722549619,0.354818,58811.0,58810.0,0.00025497]
[1723722549925,0.356818,58811.0,58810.0,0.00225497]
[1723722550322,0.40764511,58811.0,58810.0,0.00225497]
[1723722550523,0.085012,58807.0,58800.0,0.085021]
[1723722550718,0.3608,58801.0,58797.0,0.05032189]
[1723722550928,0.3608,58801.0,58800.0,0.085021]
[1723722552030,0.3608,58801.0,58798.0,0.085024]
[1723722552231,0.085022,58800.0,58798.0,0.085024]
[1723722552420,0.3618,58801.0,58795.0,0.05740616]
[1723722552732,0.3686837,58801.0,58800.0,0.003]
[1723722553326,0.0078837,58801.0,58800.0,0.003]
[1723722553624,0.0078837,58801.0,58800.0,0.085021]
[1723722553625,0.002,58801.0,58800.0,0.085021]
[1723722554018,0.001,58801.0,58800.0,0.085021]
[1723722554219,0.002,58801.0,58800.0,0.170043]
[1723722554427,0.002,58801.0,58800.0,0.173043]
[1723722554428,0.001,58801.0,58800.0,0.173043]
[1723722554726,0.002,58801.0,58800.0,0.173043]
[1723722555139,0.002,58801.0,58800.0,0.258065]
[1723722562428,0.002,58801.0,58800.0,0.30838689]
[1723722564837,0.08702,58801.0,58800.0,0.13834289]
[1723722565136,0.17204,58801.0,58800.0,0.088021]
[1723722565832,0.08702,58801.0,58800.0,0.088021]
[1723722566530,0.09702,58801.0,58800.0,0.088021]
[1723722567525,0.08702,58801.0,58800.0,0.088021]
[1723722568229,0.08702,58801.0,58800.0,0.15510799]
[1723722569125,0.002,58801.0,58800.0,0.088021]
[1723722570420,0.08702,58801.0,58800.0,0.088021]
[1723722571429,0.002,58801.0,58800.0,0.173043]
[1723722573427,0.002,58801.0,58800.0,0.25687199]
[1723722574530,0.002,58801.0,58800.0,0.37733587]
[1723722575341,0.002,58801.0,58800.0,0.2934993]
[1723722576236,0.09702,58801.0,58800.0,0.08697062]
[1723722576443,0.09702,58801.0,58800.0,0.003]
[1723722576444,0.18204,58801.0,58800.0,0.003]
[1723722576626,0.14784711,58801.0,58800.0,0.003]
[1723722577425,0.52704711,58801.0,58800.0,0.003]
[1723722577825,0.23314711,58801.0,58800.0,0.003]
[1723722578029,0.35074711,58801.0,58800.0,0.003]
[1723722578236,0.38494,58801.0,58800.0,0.07022892]
[1723722578437,0.29992,58801.0,58800.0,0.07022892]
[1723722578640,0.38494,58801.0,58800.0,0.07022892]
[1723722578939,0.28992,58801.0,58800.0,0.07022892]
[1723722579727,2.01479308,58800.0,58799.0,0.085023]
[1723722579945,2.065777,58800.0,58799.0,0.085023]
[1723722581233,2.01479308,58800.0,58799.0,0.085023]
[1723722581440,0.085025,58798.0,58797.0,0.085026]
[1723722582046,0.0896,58799.0,58798.0,0.085025]
[1723722582247,0.174623,58799.0,58798.0,0.085025]
[1723722582842,1.93165108,58800.0,58799.0,0.340092]
[1723722583042,1.93077108,58800.0,58799.0,0.65814718]
[1723722583238,1.93077108,58800.0,58799.0,0.55760429]
[1723722583539,1.92977108,58800.0,58799.0,0.55760429]
[1723722583744,1.93077108,58800.0,58799.0,0.55760429]
[1723722584238,1.93077108,58800.0,58799.0,0.68140871]
[1723722584547,1.50150624,58800.0,58799.0,1.6766334]
[1723722585838,1.50150624,58800.0,58799.0,1.82476503]
[1723722586746,1.50150624,58800.0,58799.0,1.6766334]
[1723722586945,1.50150624,58800.0,58799.0,1.83217843]
[1723722587246,1.50150624,58800.0,58799.0,5.60217843]
[1723722587634,1.50150624,58800.0,58799.0,5.51715543]
[1723722587830,1.50150624,58800.0,58799.0,1.83217843]
[1723722588144,1.44197593,58800.0,58799.0,1.83217843]
[1723722588340,1.44197593,58800.0,58799.0,1.43217843]
[1723722588547,1.44197593,58800.0,58799.0,0.92197843]
[1723722588737,1.44197593,58800.0,58799.0,1.83217843]
[1723722589241,1.44197593,58800.0,58799.0,1.32197843]
[1723722589548,1.44197593,58800.0,58799.0,1.43217843]
[1723722590048,1.44197593,58800.0,58799.0,1.83217843]
[1723722590253,1.44197593,58800.0,58799.0,1.83217865]
[1723722590838,1.44197593,58800.0,58799.0,1.82353806]
[1723722592740,1.35693858,58800.0,58799.0,1.90856106]
[1723722593051,1.35693858,58800.0,58799.0,1.90804409]
[1723722593943,1.35693858,58800.0,58799.0,1.75991364]
[1723722594149,1.35693858,58800.0,58799.0,1.9080333]
[1723722595436,1.35693858,58800.0,58799.0,1.8230103]
[1723722595741,1.35693858,58800.0,58799.0,1.4230103]
[1723722597748,1.35693858,58800.0,58799.0,1.41860003]
[1723722597947,1.33185241,58800.0,58799.0,2.54020003]
[1723722598159,1.31257242,58800.0,58799.0,2.76522303]
[1723722598655,1.09057153,58800.0,58799.0,2.76522303]
[1723722599147,1.09057153,58800.0,58799.0,2.53605169]
[1723722599337,1.09057153,58800.0,58799.0,2.76540973]
[1723722600952,1.09057153,58800.0,58799.0,2.7654094]
[1723722601545,0.88930153,58800.0,58799.0,2.7654094]
[1723722601953,0.88930153,58800.0,58799.0,2.64696278]
[1723722602147,0.88930153,58800.0,58799.0,2.56193978]
[1723722602956,0.88930153,58800.0,58799.0,2.64696278]
[1723722603146,0.88930153,58800.0,58799.0,2.56194526]
[1723722603351,0.88930153,58800.0,58799.0,2.64696826]
[1723722604047,0.88930153,58800.0,58799.0,2.56194526]
[1723722604253,0.88930153,58800.0,58799.0,2.56194532]
[1723722604447,0.88930153,58800.0,58799.0,2.64696832]
[1723722604647,0.73619553,58800.0,58799.0,2.64696832]
[1723722605155,0.73619553,58800.0,58799.0,2.64690395]
[1723722605554,0.73619553,58800.0,58799.0,2.74730516]
[1723722606453,0.73619553,58800.0,58799.0,2.64690395]
[1723722606757,0.73619553,58800.0,58799.0,2.66226948]
[1723722607158,0.73619553,58800.0,58799.0,1.94066948]
[1723722607352,0.73619553,58800.0,58799.0,2.56188095]
[1723722607961,0.73619553,58800.0,58799.0,2.56188097]
[1723722608455,0.73619553,58800.0,58799.0,1.92530397]
[1723722608659,0.73619553,58800.0,58799.0,2.56188097]
[1723722609353,0.73619553,58800.0,58799.0,1.44028097]
[1723722609560,0.73619553,58800.0,58799.0,2.07087279]
[1723722609948,0.73619553,58800.0,58799.0,1.46817279]
[1723722610150,0.73619553,58800.0,58799.0,1.32005115]
[1723722610552,0.68517148,58800.0,58799.0,1.43872636]
[1723722610855,0.68517148,58800.0,58799.0,1.32005115]
[1723722611059,0.68517148,58800.0,58799.0,1.18005115]
[1723722611445,0.68517148,58800.0,58799.0,1.29765868]
[1723722613657,0.67285678,58800.0,58799.0,1.97785868]
[1723722613863,0.67285678,58800.0,58799.0,2.46288168]
[1723722614359,0.67285678,58800.0,58799.0,2.37785868]
[1723722614657,0.67285678,58800.0,58799.0,2.46288168]
[1723722615053,0.67285678,58800.0,58799.0,2.58010859]
[1723722615451,0.67285678,58800.0,58799.0,2.85650771]
[1723722616947,0.67285678,58800.0,58799.0,2.85650752]
[1723722617145,0.67285678,58800.0,58799.0,2.77148452]
[1723722617352,0.67285678,58800.0,58799.0,2.37148452]
[1723722617849,0.67285678,58800.0,58799.0,2.37185761]
[1723722617850,0.61332887,58800.0,58799.0,2.37185761]
[1723722618054,0.61332887,58800.0,58799.0,1.86165761]
[1723722618456,0.61332887,58800.0,58799.0,1.8611266]
[1723722618664,0.61332887,58800.0,58799.0,1.1395266]
[1723722618857,0.61332887,58800.0,58799.0,1.71300224]
[1723722620054,0.61332887,58800.0,58799.0,1.83060737]
[1723722620257,0.61332887,58800.0,58799.0,1.97873335]
[1723722621353,0.61332887,58800.0,58799.0,2.06375635]
[1723722621768,0.00025497,58806.0,58799.0,2.06375635]
[1723722621769,0.00025497,58806.0,58799.0,2.42987714]
[1723722622064,0.0863,58821.0,58820.0,0.254979]
[1723722622257,0.0863,58821.0,58820.0,1.38989877]
[1723722622454,0.0863,58821.0,58820.0,1.2892607]
[1723722622674,0.0863,58821.0,58820.0,1.2846244]
[1723722622964,0.0922,58824.0,58823.0,0.254964]
[1723722623160,0.0922,58824.0,58823.0,0.4780164]
[1723722623968,0.0922,58824.0,58823.0,0.3604164]
[1723722624664,0.0922,58824.0,58823.0,0.3654164]
[1723722625362,0.0922,58824.0,58823.0,0.44914835]
[1723722625755,0.0922,58824.0,58823.0,0.45314835]
[1723722626260,0.0922,58824.0,58823.0,0.263964]
[1723722626456,9.7e-07,58826.0,58825.0,0.254955]
[1723722626662,0.093,58839.0,58838.0,0.169932]
[1723722626856,0.0878,58845.0,58844.0,0.254874]
[1723722627056,0.0878,58845.0,58844.0,0.615674]
[1723722627862,0.0863,58848.0,58847.0,0.254859]
[1723722628176,0.093,58851.0,58849.0,0.25485]
[1723722628177,0.00025497,58850.0,58849.0,0.25485]
[1723722628362,0.00025497,58850.0,58849.0,0.3398]
[1723722630184,0.00025497,58850.0,58849.0,0.3428]
[1723722630380,0.02264848,58852.0,58851.0,0.339792]
[1723722630672,0.02264848,58852.0,58851.0,0.994392]
[1723722630866,0.02264848,58852.0,58851.0,1.904152]
[1723722630867,4.8e-07,58852.0,58851.0,1.904152]
[1723722631064,0.11771676,58862.0,58861.0,0.339732]
[1723722631270,0.11771676,58862.0,58861.0,1.355132]
[1723722631660,0.11771676,58862.0,58861.0,1.40503918]
[1723722632269,0.12272727,58882.0,58861.0,2.09508]
[1723722632270,0.0085997,58872.0,58861.0,2.09508]
[1723722632570,0.12272727,58882.0,58861.0,2.09508]
[1723722632571,0.03207927,58882.0,58881.0,0.254715]
[1723722632762,0.03207927,58882.0,58865.0,0.1003859]
[1723722632763,0.98726227,58882.0,58866.0,0.04974311]
[1723722632964,0.44572,58871.0,58870.0,0.08492]
[1723722633175,0.3608,58871.0,58870.0,0.08492]
[1723722633374,0.445719,58871.0,58870.0,0.08492]
[1723722633579,0.3608,58871.0,58870.0,0.08492]
[1723722634483,0.3618,58871.0,58870.0,0.10192]
[1723722634772,0.3618,58871.0,58870.0,0.017]
[1723722634773,0.531638,58871.0,58870.0,0.017]
[1723722634986,0.169852,58866.0,58865.0,0.00025474]
[1723722635163,0.530652,58866.0,58865.0,0.00025474]
[1723722635369,1.040292,58866.0,58865.0,0.00025474]
[1723722636079,0.084937,58859.0,58856.0,0.3608]
[1723722636278,0.169338,58858.0,58857.0,0.084939]
[1723722636579,0.0844,58858.0,58845.0,0.084955]
[1723722636769,0.0844,58858.0,58845.0,0.00721879]
[1723722636965,0.084939,58857.0,58851.0,0.084947]
[1723722637274,0.0844,58858.0,58843.0,0.445759]
[1723722637275,0.3608,58853.0,58843.0,0.3608]
[1723722637481,0.445758,58844.0,58843.0,0.084959]
[1723722637691,0.084966,58839.0,58837.0,0.3608]
[1723722637977,0.3608,58844.0,58837.0,0.3608]
[1723722637978,0.3608,58838.0,58837.0,0.084968]
[1723722638177,0.3608,58844.0,58843.0,0.084959]
[1723722638375,0.084963,58841.0,58839.0,0.084964]
[1723722638677,0.084962,58842.0,58839.0,0.084964]
[1723722638880,0.084962,58842.0,58841.0,0.084962]
[1723722640182,0.0888,58843.0,58842.0,0.084961]
[1723722641879,0.25872,58843.0,58842.0,0.004]
[1723722642070,1.16856,58843.0,58842.0,0.004]
[1723722642268,1.0836,58843.0,58842.0,0.004]
[1723722642581,1.16856,58843.0,58842.0,0.008]
[1723722642970,1.17603168,58843.0,58842.0,0.008]
[1723722643165,1.16856,58843.0,58842.0,0.008]
[1723722643372,0.084965,58839.0,58838.0,0.00025474]
[1723722643578,0.615695,58839.0,58830.0,0.09280162]
[1723722643779,0.445777,58831.0,58830.0,0.00012904]
[1723722644175,0.445777,58831.0,58830.0,0.08510704]
[1723722644682,0.445777,58831.0,58830.0,0.00012904]
[1723722644978,0.530754,58831.0,58830.0,0.00012904]
[1723722645170,0.531754,58831.0,58830.0,0.01012904]
[1723722645368,1.041674,58831.0,58830.0,0.01012904]
[1723722645671,1.526651,58831.0,58830.0,0.01012904]
[1723722646076,0.254952,58826.0,58825.0,0.00025496]
[1723722646272,0.62440502,58826.0,58825.0,0.00025496]
[1723722646482,0.085006,58812.0,58811.0,0.085005]
[1723722646786,1.36443702,58826.0,58801.0,0.16813476]
[1723722646787,0.085001,58814.0,58801.0,0.16813476]
[1723722647080,0.44581,58809.0,58801.0,0.25315376]
[1723722647380,0.085013,58807.0,58801.0,0.16813476]
[1723722647583,0.3608,58809.0,58801.0,0.16813476]
[1723722647784,0.3608,58809.0,58800.0,0.085021]
[1723722647974,0.085019,58803.0,58801.0,0.08502]
[1723722648286,0.3608,58809.0,58798.0,0.3608]
[1723722648485,0.085014,58806.0,58805.0,0.085012]
[1723722648785,0.3618,58809.0,58808.0,0.08501]
[1723722649178,0.085013,58807.0,58806.0,0.085013]
[1723722649369,0.3618,58809.0,58798.0,0.65485496]
[1723722649572,0.001,58806.0,58805.0,0.008]